Cogmind - Beta 9 @@@ ROGUE MODE // 2019.10.28 @ 13:21:40 Player: TBExtent Result: Destroyed by as-13378 with Assembled Blade Performance ------------- Evolutions (0) 0 Regions Visited (2) 400 Robots Destroyed (13) 65 Value Destroyed (408) 408 Prototype IDs (4) 80 Alien Tech Used (0) 0 Bonus (0) 0 TOTAL SCORE: 953 Bonus ------- None Cogmind --------- Core Integrity 0/250 Matter 282/300 Energy 100/100 System Corruption 0% Temperature Cool (0) Location -10/Mines Parts ------- Power (1) Propulsion (2) Wheel Utility (2) Large Storage Unit High-capacity Storage Unit Weapon (2) Inventory (18) Light Treads Light Treads Aluminum Leg Aluminum Leg Aluminum Leg Medium Storage Unit Light Assault Rifle Heavy Assault Rifle Heavy Assault Rifle Heavy Assault Rifle Mining Laser Peak State ------------ Power Light Ion Engine Propulsion Aluminum Leg Aluminum Leg Utility Large Storage Unit High-capacity Storage Unit Weapon Assault Rifle Heavy Assault Rifle Inventory Light Treads Light Treads Aluminum Leg Aluminum Leg Wheel Compact Wheel Medium Storage Unit Heavy Assault Rifle Heavy Assault Rifle Heavy Assault Rifle [Rating: 9] Favorites ----------- Power Light Ion Engine Engine Light Ion Engine Propulsion Aluminum Leg Leg Aluminum Leg Wheel Wheel Utility High-capacity Storage Unit Storage High-capacity Storage Unit Weapon Assault Rifle Energy Gun Small Laser Ballistic Gun Assault Rifle Build | -11 -10 -10 ------- Run | Scr Mat Min Slots Evolved . | . . . Power . | . . . Propulsion . | . . . Utility . | . . . Weapon . | . . . Parts Attached 11 | . 8 3 Power 3 | . 2 1 Engine 3 | . 2 1 Core . | . . . Reactor . | . . . Propulsion 3 | . 1 2 Treads . | . . . Leg 1 | . 1 . Wheel 2 | . . 2 Hover . | . . . Flight . | . . . Utility 2 | . 2 . Device . | . . . Storage 2 | . 2 . Processor . | . . . Hackware . | . . . Protection . | . . . Artifact . | . . . Weapon 3 | . 3 . Energy Gun 1 | . 1 . Energy Cannon . | . . . Ballistic Gun 2 | . 2 . Ballistic Cannon . | . . . Launcher . | . . . Special Weapon . | . . . Impact Weapon . | . . . Slashing Weapon . | . . . Piercing Weapon . | . . . Special Melee Weapon . | . . . Unidentified Prototypes . | . . . Parts Lost 12 | . 6 6 Power 4 | . 2 2 Propulsion 3 | . 1 2 Utility . | . . . Weapon 5 | . 3 2 Highest Loss Streak 6 | . 3 6 Average Slot Usage (%) 86 | . 86 85 Engine 13 | . 13 10 Leg 27 | . 28 20 Storage 21 | . 20 28 Energy Gun 8 | . 9 . Ballistic Gun 14 | . 13 20 Naked Turns . | . . . Heaviest Build 56 | 11 56 56 Greatest Support 26 | 20 20 26 Greatest Overweight (x) 4 | . 2 4 Average Overweight (x) . | . . 2 Largest Inventory Capacity 18 | . 18 18 Average Capacity 12 | . 11 18 Most Carried 13 | . 13 13 Average Carried 8 | . 7 12 Final Capacity 18 | . . 18 Final Carried 11 | . . 11 Class Distribution -------------------- 100% | Mutant Dominant Class ---------------- Mutant | -10/Materials Mutant | -10/Mines Resources | -11 -10 -10 ----------- Run | Scr Mat Min Matter Collected 384 | 200 184 . Remotely . | . . . Salvage Created 544 | . 544 . Parts 28 | . 28 . Haulers Intercepted 1 | . 1 . Recyclers Shooed . | . . . Parts Field Recycled . | . . . Retrieved Matter . | . . . Parts Self-Destructed . | . . . Prevented . | . . . Kills | -11 -10 -10 ------- Run | Scr Mat Min Combat Hostiles Destroyed 12 | . 12 . Guns 11 | . 11 . AOE 1 | . 1 . Classes Destroyed 3 | . 3 . Hauler 1 | . 1 . Swarmer 2 | . 2 . Grunt 10 | . 10 . Best Kill Streak 4 | . 4 . Combat Bots Only 4 | . 4 . Max Kills in Single Turn 2 | . 2 . Gunslinging . | . . . Exploded 1 | . 1 . Melee . | . . . Uniques/NPCs Destroyed . | . . . Combat | -11 -10 -10 -------- Run | Scr Mat Min Damage Taken 1234 | . 688 546 Core 259 | . 120 139 Absorbed by Shields . | . . . Core Remaining (%) 100 | 100 . . Volleys Fired 54 | . 54 . Largest 2 | . 2 . Hottest 90 | . 90 . Shots Fired 84 | . 84 . Gun 84 | . 84 . Cannon . | . . . Launcher . | . . . Special . | . . . Kinetic 49 | . 49 . Thermal 25 | . 25 . Explosive . | . . . Electromagnetic 10 | . 10 . Robot Hit Streak 8 | . 8 . Robot Miss Streak 4 | . 4 . Penetration Max . | . . . Secondary Targets . | . . . Shots Hit Robots 52 | . 52 . Core Hits 21 | . 21 . Critical Hits 1 | . 1 . Critical Kills . | . . . Critical Parts Destroyed 1 | . 1 . Melee Attacks . | . . . Impact . | . . . Slashing . | . . . Piercing . | . . . Sneak Attacks . | . . . Combat Hostiles . | . . . Follow-up Attacks . | . . . Damage Inflicted 740 | . 740 . Guns 654 | . 654 . Cannons . | . . . Explosions 86 | . 86 . Melee . | . . . Ramming . | . . . Kinetic 377 | . 377 . Thermal 254 | . 254 . Explosive . | . . . Electromagnetic 109 | . 109 . Impact . | . . . Slashing . | . . . Piercing . | . . . Highest Corruption . | . . . Average Corruption . | . . . Corruption Purged . | . . . Overload Shots . | . . . Overflow Damage 27 | . 27 . Projectiles . | . . . Explosions 27 | . 27 . Melee . | . . . Knockbacks . | . . . Impact . | . . . Kinetic . | . . . Secondary . | . . . Self-Inflicted Damage 19 | . 19 . Shots 1 | . 1 . Rammed . | . . . Targets Rammed . | . . . Kicked . | . . . Crushed . | . . . Highest Temperature 268 | . 268 20 Average Temperature 83 | . 84 17 Received Heat Transfer 411 | . 291 120 Effects 2 | . 2 . Energy Bleed 2 | . 2 . Siege Activations . | . . . Robots Corrupted . | . . . Combat Hostiles . | . . . Parts Fried . | . . . Impact Corruptions . | . . . Robots Melted . | . . . Combat Hostiles . | . . . Parts Melted 2 | . 2 . Heat Transferred 597 | . 597 . Parts Sabotaged . | . . . Parts Stolen . | . . . Parts Stripped . | . . . Power Chain Reactions 1 | . 1 . Missiles Intercepted . | . . . Alert | -11 -10 -10 ------- Run | Scr Mat Min Peak Influence 234 | . 234 5 Average Influence 95 | . 102 3 Maximum Alert Level 1 | . 1 . Low Security (%) 98 | . . . Level 1 1 | . . . Level 2 . | . . . Level 3 . | . . . Level 4 . | . . . Level 5 . | . . . High Security . | . . . Max Security . | . . . Squads Dispatched 3 | . 3 . Investigation 1 | . 1 . Extermination . | . . . Reinforcement 2 | . 2 . Assault . | . . . Garrison . | . . . Intercept . | . . . Construction Impeded . | . . . Haulers Reinforced . | . . . Stealth | -11 -10 -10 --------- Run | Scr Mat Min Distress Signals 1 | . 1 . Communications Jammed . | . . . Distress Signals . | . . . Times Spotted 44 | . 28 16 Peak Tracking Total 16 | . 5 16 Tactical Retreats 3 | . 3 . Traps | -11 -10 -10 ------- Run | Scr Mat Min Traps Triggered 1 | . 1 . Indirectly . | . . . Trap Hack Attempts . | . . . Triggered . | . . . Disarmed . | . . . Reprogrammed . | . . . Reused . | . . . Traps Extracted . | . . . Installed . | . . . Triggered . | . . . Machines | -11 -10 -10 ---------- Run | Scr Mat Min Machines Disabled 2 | . 2 . Max in Single Turn 1 | . 1 . Machines Sabotaged . | . . . Garrisons Compromised . | . . . Overloaded Fab Kills . | . . . Fab Network Shutdowns . | . . . Hacking | -11 -10 -10 --------- Run | Scr Mat Min Machines Accessed 3 | . 3 . Terminals 3 | . 3 . Fabricators . | . . . Repair Stations . | . . . Recycling Units . | . . . Scanalyzers . | . . . Garrison Access . | . . . Total Hacks 11 | . 11 . Successful 7 | . 7 . Failed 4 | . 4 . Catastrophic . | . . . Database Lockouts . | . . . Manual 9 | . 9 . Terminals 11 | . 11 . Fabricators . | . . . Repair Stations . | . . . Recycling Units . | . . . Scanalyzers . | . . . Garrison Access . | . . . Terminal Hacks 5 | . 5 . Prototype ID Bank 2 | . 2 . Terminal Index 1 | . 1 . Locate Traps 1 | . 1 . Zone Layout 1 | . 1 . Fabricator Hacks . | . . . Repair Station Hacks . | . . . Recycling Unit Hacks . | . . . Scanalyzer . | . . . Garrison Access Hacks . | . . . Unauthorized Hacks 4 | . 4 . Terminals 2 | . 2 . Track 1 | . 1 . Assimilate 1 | . 1 . Fabricators . | . . . Repair Stations . | . . . Recycling Units . | . . . Scanalyzers . | . . . Garrison Access . | . . . Data Cores Recovered . | . . . Used . | . . . Hacking Detections 3 | . 3 . Full Trace Events . | . . . Feedback Events . | . . . Feedback Blocked . | . . . Robot Schematics Acquired . | . . . Robots Built . | . . . Matter . | . . . Time . | . . . Total Robot Build Rating . | . . . Part Schematics Acquired . | . . . Parts Built . | . . . Matter . | . . . Time . | . . . Total Part Build Rating . | . . . Parts Repaired . | . . . Time . | . . . Parts Recycled . | . . . Recycled Matter . | . . . Retrieved Matter . | . . . Retrieved Components . | . . . Parts Scanalyzed . | . . . Part Schematics Acquired . | . . . Parts Damaged . | . . . Bothacking | -11 -10 -10 ------------ Run | Scr Mat Min Used RIF Installer . | . . . Robots Hacked . | . . . Non-combat . | . . . Combat . | . . . Robot Hacks Applied . | . . . Relay Couplers Released . | . . . Robots Rewired . | . . . Allies Hacked . | . . . Hacks Repelled . | . . . Allies | -11 -10 -10 -------- Run | Scr Mat Min Total Allies 1 | . 1 . Largest Group 1 | . 1 . Highest-Rated Group 10 | . 10 . Highest-Rated Ally 10 | . 10 . Total Orders . | . . . Ally Attacks . | . . . Total Damage . | . . . Kills . | . . . Allies Corrupted . | . . . Allies Melted . | . . . Intel | -11 -10 -10 ------- Run | Scr Mat Min Robot Analysis Total . | . . . Derelict Logs Recovered 2 | . . 2 Drone Launches . | . . . Drone Recoveries . | . . . Exploration | -11 -10 -10 ------------- Run | Scr Mat Min Turns Passed 926 | . 855 71 Spaces Moved 478 | 1 434 43 Core . | . . . Treads . | . . . Legs 462 | 1 434 27 Wheels 16 | . . 16 Hover . | . . . Flight . | . . . Fastest Speed 100 | 120 120 100 Average Speed 145 | 120 144 156 Slowest Speed 180 | 120 180 180 Overloaded Moves . | . . . Propulsion Burnouts . | . . . Robots Hopped . | . . . Cave-ins Triggered . | . . . Exploration Rate (%) 20 | 2 47 12 Regions Visited 2 Branch Regions 1 Pre-discovered Areas . | . . . Known Exits Taken . | . . . Unknown Exits Taken 2 | 1 1 . Scrap Searched . | . . . Spaces Dug . | . . . Terrain Destroyed . | . . . Melee . | . . . Projectile . | . . . AOE . | . . . Actions | -11 -10 -10 --------- Run | Scr Mat Min Total 623 | . 577 46 Wait 67 | . 67 . Move 476 | . 433 43 Hop . | . . . Pick Up 14 | . 14 . Fast Attach 1 | . 1 . Attach 8 | . 6 2 Detach . | . . . Swap 2 | . 1 1 Drop 1 | . 1 . Fire 54 | . 54 . Melee . | . . . Ram . | . . . Kick . | . . . Crush . | . . . Escape Stasis . | . . . Rewire . | . . . Trap . | . . . Miscellaneous . | . . . Route ------- -11/Scrapyard -10/Materials (discovered 3 exits: *Mat / [*Min x2]) -10/Mines (discovered 1 exit: Mat) History --------- Turn | Location | Event 1 | -11/Scrapyard | Discovered new exit (range 0) 1 | -11/Scrapyard | Entered Materials 145 | -10/Materials | Discovered new exit (range 16) 160 | -10/Materials | Discovered new exit (range 7) 307 | -10/Materials | Build established: Mutant 409 | -10/Materials | Discovered new exit (range 13) 804 | -10/Materials | Lost 3 parts (1p1n1w) 856 | -10/Materials | Entered Mines 864 | -10/Mines | Identified exit to Materials 867 | -10/Mines | Learned Materials non-interactive machine intel 890 | -10/Mines | Assembled infested the area 899 | -10/Mines | Core integrity fell below 50% 912 | -10/Mines | Core integrity fell below 20% 927 | -10/Mines | Destroyed by as-13378 with Assembled Blade Last Messages --------------- 00787_ S-10 Pest destroyed. 00792_ Acquired 18 matter. 00796_ Acquired Lgt. Assault Rifle. 00799_ Acquired Lgt. Ion Engine. 00801_ Acquired 45 matter. 00830_ Acquired Mining Laser. LOCATION=UNKNOWN GOAL=ESCAPE 00857_ K-01 Serf collects debris. 00864_ Acquired derelict log, extracted data. Data stored: Materials non-interactive machine intel. 00890_ ALERT: Infestation in the mines, dispatching Demolisher response squad. 00894_ T-07 Excavator destroyed. 00900_ Lgt. Ion Engine destroyed. 00903_ Assault Rifle destroyed. 00904_ Aluminum Leg destroyed. 00907_ Lgt. Ion Engine destroyed. 00908_ Hvy. Assault Rifle destroyed. 00910_ Com. Wheel destroyed. Map ----- +----------------------------------------------------+ | | | | | | | | | | | | | | | | | | | | | ???????????????????????????????????????????????? | | ???????????????????????????????????????????????? | | ???????????????????????????????????????????????? | | ???????????????????????????????????????????????? | | ???????????????????????????????????????????????? | | ??####????####????????????##########???????????? | | ?## ##?## ##???????????# #???????????? | | ?# ## ##??????????# #???????????? | | ?# #????????### #???????????? | | ??# ########## #???????????? | | ??## # #???????????? | | ???## ##########a# #???????????? | | ????# ##????????# ##########???????????? | | ???#%= ##?????????#a#????????????????????? | | ? ! ##??????????#a#????????????????????? | | =%* ##???????????#@#????????????????????? | | | ##????????????# #????????????????????? | | #####?????????????# #????????????????????? | | ## ?????????????????? #????????????????????? | | #?## =??????????????????###????????????????????? | | ???#=%?????????????????????????????????????????? | | ???# ??????????????????????????????????????????? | | ??? ??????????????????????????????????????????? | | ???? ??????????????????????????????????????????? | | ???????????????????????????????????????????????? | | ???????????????????????????????????????????????? | | ???????????????????????????????????????????????? | | ???????????????????????????????????????????????? | | ???????????????????????????????????????????????? | | ???????????????????????????????????????????????? | | ???????????????????????????????????????????????? | | ???????????????????????????????????????????????? | | ???????????????????????????????????????????????? | | ???????????????????????????????????????????????? | | ???????????????????????????????????????????????? | | ???????????????????????????????????????????????? | | ???????????????????????????????????????????????? | | ???????????????????????????????????????????????? | | ???????????????????????????????????????????????? | | ???????????????????????????????????????????????? | +----------------------------------------------------+ Best States ------------- Heat Dissipation 25 Energy Generation 10 Energy Capacity 250 Matter Stores 300 Matter Capacity 300 Sight Range 16 Terrain Scan Density 10 Evasion (%) 40 Item Schematics ----------------- None Robot Schematics ------------------ None Fabricated ------------ Nothing Alien Tech Used ----------------- None Achievements -------------- None Challenges ------------ None Game ------ Seed AbsorptionContainmentPod Manual? 0 Play Time 00:09:35 Cumulative 175.1 hours Start 2019.10.28 @ 13:13:01 End 2019.10.28 @ 13:21:40 Sessions 1 Manual Loads 0 Difficulty Rogue Special Mode None Game No. 106 Rogue 90 Adventurer 8 Explorer 0 Win Type - Total 7 Types 6/0/0/1/0/0/0 Lore% 69 Gallery% 69 Achievement% 60 Wizard Run 0 Options --------- ASCII 0 Keyboard 0 Movement Mouse Keybinds 0 Fullscreen 2 Font 14/SmallcapsGlow Map View 72x52 Tactical HUD 1 Map Filters NONE Filters NONE Steam X RUN: 0216dfbd-9803-43bd-96dd-4c3bb474584e